Cogmind - Beta 13 @@@ ROGUE MODE // 2024.04.02 @ 13:38:11 Player: Kafouille Result: Destroyed by EJ-SSD(R) with Subdweller Beam Cannon Performance ------------- Evolutions (0) 0 Regions Visited (2) 400 Robots Destroyed (27) 135 Value Destroyed (516) 516 Prototype IDs (0) 0 Alien Tech Used (0) 0 Bonus (0) 0 TOTAL SCORE: 1051 Bonus ------- None Cogmind --------- Core Integrity 0/250 Matter 265/300 Energy 87/100 System Corruption 4% Temperature Warm (152) Movement Core (350) Ox6 Location -10/Subcaves Parts ------- > --- POWER (1) -------- (None) > --- PROPULSION (2) --- (None) > --- UTILITY (2) ------ Large Storage Unit > --- WEAPON (2) ------- (None) > --- INVENTORY (15) --- Ion Engine Heat Sink ECM Suite Light Armor Plating Light Armor Plating Scrap Shield Heavy EM Pulse Gun Heavy EM Pulse Gun Heavy EM Pulse Gun Particle Cannon Grenade Launcher Peak State ------------ > --- POWER ------------ Light Nuclear Core > --- PROPULSION ------- Light Treads Light Treads > --- UTILITY ---------- Large Storage Unit Sensor Array > --- WEAPON ----------- Heavy EM Pulse Gun Heavy EM Pulse Gun > --- INVENTORY -------- Ion Engine Heat Sink Light Armor Plating Light Armor Plating Heavy EM Pulse Gun Medium Laser Assault Rifle Light Assault Rifle Light Cannon [Rating: 12] Favorites ----------- Power Light Nuclear Core Engine Ion Engine Power Core Light Nuclear Core Propulsion Light Treads Treads Light Treads Utility Large Storage Unit Device Sensor Array Storage Large Storage Unit Weapon Heavy EM Pulse Gun Energy Gun Heavy EM Pulse Gun Energy Cannon Particle Cannon Ballistic Gun Assault Rifle Ballistic Cannon Light Cannon Build | -11 -10 -10 ------- Run | Yrd Mat Sub Slots Evolved . | . . . Power . | . . . Propulsion . | . . . Utility . | . . . Weapon . | . . . Parts Attached 23 | 7 16 . Power 4 | 1 3 . Engine 2 | 1 1 . Core 2 | . 2 . Reactor . | . . . Propulsion 3 | 2 1 . Treads 3 | 2 1 . Leg . | . . . Wheel . | . . . Hover . | . . . Flight . | . . . Utility 4 | 1 3 . Device 2 | . 2 . Storage 2 | 1 1 . Processor . | . . . Hackware . | . . . Protection . | . . . Artifact . | . . . Weapon 12 | 3 9 . Energy Gun 5 | 1 4 . Energy Cannon 2 | . 2 . Ballistic Gun 3 | 2 1 . Ballistic Cannon 2 | . 2 . Launcher . | . . . Special Weapon . | . . . Impact Weapon . | . . . Slashing Weapon . | . . . Piercing Weapon . | . . . Special Melee Weapon . | . . . Unidentified Prototypes . | . . . Parts Lost 7 | . 1 6 Power 1 | . . 1 Propulsion 2 | . . 2 Utility 1 | . . 1 Weapon 3 | . 1 2 Highest Loss Streak 6 | . 1 6 To Critical Strikes . | . . . Average Slot Usage (%) 97 | . 97 96 Engine 1 | . 1 . Core 12 | . 12 12 Treads 27 | . 27 26 Device 12 | . 12 14 Storage 14 | . 14 14 Energy Gun 15 | . 16 . Energy Cannon 2 | . 1 26 Ballistic Gun 5 | . 5 . Ballistic Cannon 4 | . 4 . Naked Turns . | . . . Heaviest Build 34 | 14 34 34 Greatest Support 40 | 40 40 40 Greatest Overweight (x) 2 | 2 . . Average Overweight (x) . | . . . Largest Inventory Capacity 15 | 8 15 15 Average Capacity 13 | 7 13 15 Most Carried 13 | 3 13 12 Average Carried 7 | 1 7 11 Final Capacity 15 | 8 15 15 Final Carried 12 | 2 10 12 Class Distribution -------------------- 100% | Mutant Dominant Class ---------------- Mutant | -10/Materials Mutant | -10/Subcaves Resources | -11 -10 -10 ----------- Run | Yrd Mat Sub Matter Collected 656 | 302 354 . Remotely . | . . . Salvage Created 909 | 59 850 . Parts 44 | 1 43 . Haulers Intercepted 2 | . 2 . Recyclers Shooed 1 | . 1 . Parts Field Recycled . | . . . Retrieved Matter . | . . . Parts Self-Destructed . | . . . Prevented . | . . . Kills | -11 -10 -10 ------- Run | Yrd Mat Sub Combat Hostiles Destroyed 15 | . 15 . Guns 9 | . 9 . Cannons 5 | . 5 . AOE 1 | . 1 . Classes Destroyed 8 | 1 7 . Worker 2 | . 2 . Builder 1 | . 1 . Hauler 2 | . 2 . Recycler 3 | 1 2 . Operator 1 | . 1 . Watcher 3 | . 3 . Swarmer 5 | . 5 . Grunt 10 | . 10 . Best Kill Streak 5 | 1 5 . Combat Bots Only 3 | . 3 . Max Kills in Single Turn 1 | 1 1 . Gunslinging . | . . . Exploded 1 | . 1 . Melee . | . . . Uniques/NPCs Destroyed . | . . . Combat | -11 -10 -10 -------- Run | Yrd Mat Sub Hostile Shots Fired 105 | . 59 46 Missed 24 | . 15 9 Damage Taken 1218 | . 409 809 Core 255 | . 55 200 Absorbed by Shields . | . . . Regen/Repaired (Parts) 128 | . 128 . Core Remaining (%) 100 | 100 . . Volleys Fired 73 | 12 57 4 Largest 2 | 2 2 2 Hottest 136 | 70 90 136 Shots Fired 144 | 24 114 6 Gun 108 | 24 84 . Cannon 36 | . 30 6 Launcher . | . . . Special . | . . . Kinetic 72 | 12 60 . Thermal 18 | 12 . 6 Explosive . | . . . Electromagnetic 54 | . 54 . Robot Hit Streak 8 | 3 8 5 Robot Miss Streak 4 | 4 4 1 Penetration Max . | . . . Secondary Targets . | . . . Shots Hit Robots 79 | 11 63 5 Core Hits 30 | 2 27 1 Critical Kills . | . . . Critical Parts Destroyed . | . . . Critical Strikes 3 | 2 1 . Burn 2 | 2 . . Blast 1 | . 1 . Melee Attacks . | . . . Impact . | . . . Slashing . | . . . Piercing . | . . . Sneak Attacks . | . . . Combat Hostiles . | . . . Follow-up Attacks . | . . . Damage Inflicted 1264 | 148 1013 103 Guns 737 | 148 589 . Cannons 470 | . 367 103 Explosions 55 | . 55 . Melee . | . . . Ramming 2 | . 2 . Kinetic 627 | 87 540 . Thermal 219 | 61 55 103 Explosive . | . . . Electromagnetic 416 | . 416 . Impact . | . . . Slashing . | . . . Piercing . | . . . Highest Corruption 4 | . 4 4 Average Corruption 3 | . 2 4 Corruption Purged . | . . . Corruption Blocked . | . . . Effects 17 | . 15 2 Message Errors 4 | . 4 . Matter Fused 7 | . 5 2 Heat Flow Errors 2 | . 2 . Energy Discharges 1 | . 1 . Data Loss (major) 2 | . 2 . Alerts 1 | . 1 . Overload Shots . | . . . Overflow Damage 18 | . 18 . Projectiles 18 | . 18 . Explosions . | . . . Melee . | . . . Knockbacks 2 | . 2 . Impact . | . . . Kinetic 2 | . 2 . Secondary . | . . . Self-Inflicted Damage . | . . . Shots . | . . . Rammed 1 | . 1 . Targets Rammed 1 | . 1 . Kicked . | . . . Crushed . | . . . Highest Temperature 288 | 36 288 143 Average Temperature 65 | 17 75 100 Received Heat Transfer 282 | . 87 195 Effects 3 | . 3 . Interference 3 | . 3 . Siege Activations . | . . . Robots Corrupted 2 | . 2 . Combat Hostiles . | . . . Parts Fried 3 | . 3 . Impact Corruptions . | . . . Robots Melted . | . . . Combat Hostiles . | . . . Parts Melted . | . . . Heat Transferred 568 | 333 50 185 Parts Sabotaged . | . . . Parts Stolen . | . . . Parts Stripped . | . . . Power Chain Reactions 2 | . 2 . Alert | -11 -10 -10 ------- Run | Yrd Mat Sub Peak Influence 249 | 5 249 . Initial 3 | . 3 . Average 112 | 1 121 . Maximum Alert Level 1 | . 1 . Low Security (%) 85 | 100 84 . Level 1 14 | . 15 . Level 2 . | . . . Level 3 . | . . . Level 4 . | . . . Level 5 . | . . . High Security . | . . . Max Security . | . . . Squads Dispatched 4 | . 4 . Investigation 2 | . 2 . Extermination . | . . . Reinforcement 2 | . 2 . Assault . | . . . Garrison . | . . . Intercept . | . . . Searches Triggered . | . . . Construction Impeded . | . . . Haulers Reinforced . | . . . Active Scanning Responses . | . . . Cargo Convoy Interrupts . | . . . Stealth | -11 -10 -10 --------- Run | Yrd Mat Sub Distress Signals . | . . . Communications Jammed . | . . . Distress Signals . | . . . Times Spotted 37 | . 26 11 Peak Tracking Total 11 | . 5 11 Tactical Retreats 1 | . 1 . Traps | -11 -10 -10 ------- Run | Yrd Mat Sub Traps Triggered 4 | . 4 . Indirectly . | . . . Trap Hack Attempts . | . . . Triggered . | . . . Disarmed . | . . . Reprogrammed . | . . . Reused . | . . . Traps Extracted . | . . . Installed . | . . . Triggered . | . . . Machines | -11 -10 -10 ---------- Run | Yrd Mat Sub Machines Disabled 2 | . 2 . Max in Single Turn 1 | . 1 . Machines Repaired . | . . . Machines Dismantled . | . . . Machines Sabotaged . | . . . Overloaded Fab Kills . | . . . Hacking | -11 -10 -10 --------- Run | Yrd Mat Sub Machines Accessed 8 | . 8 . Terminals 5 | . 5 . Fabricators . | . . . Repair Stations 1 | . 1 . Recycling Units 2 | . 2 . Scanalyzers . | . . . Garrison Access . | . . . Total Hacks 25 | . 25 . Successful 14 | . 14 . Failed 11 | . 11 . Catastrophic . | . . . Database Lockouts . | . . . Manual . | . . . Terminals 15 | . 15 . Fabricators . | . . . Repair Stations 4 | . 4 . Recycling Units 6 | . 6 . Scanalyzers . | . . . Garrison Access . | . . . Terminal Hacks 6 | . 6 . Emergency Access Points 1 | . 1 . Scanalyzer Index 1 | . 1 . Locate Traps 1 | . 1 . Dispatch Records 1 | . 1 . Security Status 1 | . 1 . Registered Components 1 | . 1 . Fabricator Hacks . | . . . Repair Station Hacks 4 | . 4 . Scan Component 2 | . 2 . Repair 2 | . 2 . Recycling Unit Hacks 4 | . 4 . Process 1 | . 1 . Report Inventory 2 | . 2 . Retrieve Components 1 | . 1 . Scanalyzer . | . . . Garrison Access Hacks . | . . . Unauthorized Hacks . | . . . Terminals . | . . . Fabricators . | . . . Repair Stations . | . . . Recycling Units . | . . . Scanalyzers . | . . . Garrison Access . | . . . Data Cores Recovered . | . . . Used . | . . . Hacking Detections 8 | . 8 . Full Trace Events 2 | . 2 . Feedback Events . | . . . Feedback Blocked . | . . . Robot Schematics Acquired . | . . . Robots Built . | . . . Authchips . | . . . Time . | . . . Total Robot Build Rating . | . . . Part Schematics Acquired . | . . . Parts Built . | . . . Authchips . | . . . Time . | . . . Total Part Build Rating . | . . . Parts Repaired 2 | . 2 . Time 58 | . 58 . Parts Recycled . | . . . Recycled Matter 131 | . 131 . Retrieved Matter . | . . . Retrieved Components 2 | . 2 . Parts Scanalyzed . | . . . Part Schematics Acquired . | . . . Parts Damaged . | . . . Bothacking | -11 -10 -10 ------------ Run | Yrd Mat Sub Used RIF Installer . | . . . Robots Hacked . | . . . Non-combat . | . . . Combat . | . . . Robot Hacks Applied . | . . . Relay Couplers Released . | . . . Fabnet Peak Effective % . | . . . Robots Rewired . | . . . Allies Hacked . | . . . Hacks Repelled . | . . . Allies | -11 -10 -10 -------- Run | Yrd Mat Sub Total Allies . | . . . Largest Group . | . . . Highest-Rated Group . | . . . Highest-Rated Ally . | . . . Total Orders . | . . . Ally Attacks . | . . . Total Damage . | . . . Kills . | . . . Allies Corrupted . | . . . Allies Melted . | . . . Intel | -11 -10 -10 ------- Run | Yrd Mat Sub Robot Analysis Total . | . . . Derelict Logs Recovered . | . . . Drone Launches . | . . . Drone Recoveries . | . . . Exploration | -11 -10 -10 ------------- Run | Yrd Mat Sub Turns Passed 1951 | 131 1714 106 Spaces Moved 964 | 53 852 59 Core 15 | 15 . . Treads 949 | 38 852 59 Legs . | . . . Wheels . | . . . Hover . | . . . Flight . | . . . Fastest Speed 50 | 50 160 160 Average Speed 159 | 152 160 160 Slowest Speed 160 | 160 160 160 Overloaded Moves . | . . . Propulsion Burnouts . | . . . Robots Hopped . | . . . Cave-ins Triggered . | . . . Exploration Rate (%) 33 | 5 88 8 Regions Visited 2 Branch Regions 1 Pre-discovered Areas . | . . . Known Exits Taken . | . . . Unknown Exits Taken 2 | 1 1 . Scrap Searched . | . . . Spaces Dug . | . . . Terrain Destroyed 5 | . 5 . Melee . | . . . Projectile . | . . . AOE 5 | . 5 . Terrain Rammed . | . . . Walls Destroyed . | . . . Machines Disabled . | . . . Actions | -11 -10 -10 --------- Run | Yrd Mat Sub Total 1230 | 79 1087 64 Wait 134 | . 134 . Move 962 | 52 851 59 Hop . | . . . Pick Up 31 | 8 22 1 Fast Attach . | . . . Attach 14 | 6 8 . Detach . | . . . Swap 9 | 1 8 . Drop 6 | . 6 . Fire 73 | 12 57 4 Melee . | . . . Ram . | . . . Kick . | . . . Crush 1 | . 1 . Escape Stasis . | . . . Rewire . | . . . Trap . | . . . Miscellaneous . | . . . Route ------- -11/Scrapyard -10/Materials (discovered 5 exits: [*Mat x3] / [*Min] / [*Sub]) -10/Subcaves History --------- Turn | Location | Event 13 | -11/Scrapyard | Discovered new exit (range 15) 132 | -11/Scrapyard | Entered Materials 300 | -10/Materials | Build established: Mutant 393 | -10/Materials | Discovered new exit (range 15) 794 | -10/Materials | Discovered new exit (range 15) 928 | -10/Materials | Discovered new exit (range 16) 1217 | -10/Materials | Discovered new exit (range 7) 1653 | -10/Materials | Repaired Lgt. Treads 1687 | -10/Materials | Repaired Hvy. EM Pulse Gun 1818 | -10/Materials | Discovered new exit (range 13) 1846 | -10/Materials | Entered Subcaves 1937 | -10/Subcaves | A swath of the cavern ceiling suddenly collapsed 1941 | -10/Subcaves | Ambushed by swarm of Subdwellers 1941 | -10/Subcaves | Ambushed by Subdwellers from Twisted Machinery 1941 | -10/Subcaves | Ambushed by Subdwellers from Twisted Machinery 1941 | -10/Subcaves | Ambushed by Subdwellers from Twisted Machinery 1941 | -10/Subcaves | Ambushed by Subdwellers from Twisted Machinery 1941 | -10/Subcaves | Ambushed by Subdwellers from Twisted Machinery 1941 | -10/Subcaves | Ambushed by Subdwellers from Twisted Machinery 1947 | -10/Subcaves | Core integrity fell below 50% 1950 | -10/Subcaves | Core integrity fell below 20% 1952 | -10/Subcaves | Destroyed by EJ-SSD(R) with Subdweller Beam Cannon Last Messages --------------- collapses. A mess of Twisted Machinery falls from the cavern ceiling. YH-LTV(R) comes tumbling into view. 01941_ 5R-R3W(R) angrily emerges from the Twisted Machinery. 01941_ ED-WPG(R) angrily emerges from the Twisted Machinery. 01941_ BJ-VK2(R) angrily emerges from the Twisted Machinery. 01941_ EX-NNS(R) angrily emerges from the Twisted Machinery. 01943_ 5R-R3W(R) destroyed. 01946_ Particle Cannon destroyed. 01946_ Lgt. Nuclear Core destroyed. 01947_ Lgt. Treads destroyed. 01949_ DV-L7M(R) destroyed. 01950_ Lgt. Treads destroyed. 01951_ Particle Cannon destroyed. 01951_ Sensor Array destroyed. Map ----- +----------------------------------------------------+ | ????????????????# ##? #### # | | ????????????????# ### #??? # | | ???????????????## ## ??? # | | ??????????????## #### ???? # | | ??????????????# ##?#????### | | ??????????????## #????????? | | ???????????????### ## #???????? | | ?????????????????# ##????????????? | | ?????????????????# #?????????????? | | ?????????????????## ##?????????????? | | ??????????????????## #??????????????? | | ???????????????????# ##??????????????? | | ???????????????????### ##??????????#???? | | ?????????????????????## ##???????? #???? | | ??????????????????????## ##????? #????? | | ???????????????????????# ##### #????? | | ???????????????????????# #????? | | ???????????????????????## #??????? | | ??????????????????????#### ##??????? | | ?????????????????????## ##???????? | | ?????????????????????# ###????????? | | ?????????????????????# ## ##??????????? | | ????????????????????## ### ##???????????? | | ???????????????###### ## ##???????????? | | ???????????????#RRRR# #???????????? | | ???????????????#[%@ # ## ###???????????? | | ???????????????###RR#########?????????????? | | ????????????????#;RRR#????????????????????? | | ????????????????######????????????????????? | | ????????????????# ????????????????????? | | ????????????????# ???????????????????? | | ????????????????# ??????????????????? | | ????????????????# ### ??????????????????? | | ????????????????# #??# ?????????????????? | | ????????????????## #??? ????????????????? | | ?????????????????$ ????? ???????????????? | | ????????????????? ????? ???????????????? | | ?????????????????# ?????? ??????????????? | | ?????????????????# ???????##?????????????? | | ????????????????? ??????????????????????? | | ?????????????????? ??????????????????????? | | ?????????????????? ??????????????????????? | | ??????????????????????????????????????????? | | ??????????????????????????????????????????? | | ??????????????????????????????????????????? | | ??????????????????????????????????????????? | | ??????????????????????????????????????????? | | ??????????????????????????????????????????? | | ??????????????????????????????????????????? | | ??????????????????????????????????????????? | +----------------------------------------------------+ Best States ------------- Heat Dissipation 35 Energy Generation 14 Energy Capacity 250 Matter Stores 300 Matter Capacity 300 Sight Range 16 Robot Scan Range 14 Terrain Scan Density 10 Evasion (%) 40 Recoil Reduction 2 Item Schematics ----------------- None Robot Schematics ------------------ None Fabricated ------------ Nothing Alien Tech Used ----------------- None Achievements -------------- None Challenges ------------ None Game ------ Seed InertialTransmissionShotgun Manual? 0 Play Time 00:22:45 Cumulative 5.9 hours Start 2024.04.02 @ 13:15:46 End 2024.04.02 @ 13:38:11 Sessions 1 Manual Loads 0 Difficulty Rogue Special Mode None Game No. 6 Rogue 6 Adventurer 0 Explorer 0 Win Type - Total 0 Types 0/0/0/0/0/0/0/0/0 Lore% 5 Gallery% 11 Achievement% 9 Wizard Run 0 Options --------- Layout 2 ASCII 0 Keyboard 0 Movement Numpad Keybinds 0 Fullscreen 2 Font 32/SmallcapsGlow Map View 50x44 Zoom Use 0% Tactical HUD 1 Map Filters NONE Filters NONE Steam 1 RUN: d7be8a24-af38-4158-9a3a-bcdcc0fed575